lending/lending_fUSD_20250218
["ID","MTS","AMOUNT","RATE_DAILY","PERIOD"]
[353495999,1739883903327,393.27,8.767e-05,2]
[353496002,1739884013324,152.69,0.000149,31]
[353496003,1739884013381,152.69,0.000149,31]
[353496004,1739884013446,152.69,0.000149,31]
[353496005,1739884013518,152.69,0.000149,31]
[353496006,1739884013572,152.69,0.000149,31]
[353496007,1739884013625,152.69,0.000149,31]
[353496008,1739884013688,152.69,0.000149,31]
[353496009,1739884013749,152.69,0.000149,31]
[353496010,1739884013961,152.69,0.000149,31]
[353496011,1739884014007,152.69,0.000149,31]
[353496012,1739884014057,152.69,0.000149,31]
[353496013,1739884014124,152.69,0.000149,31]
[353496014,1739884014177,152.69,0.000149,31]
[353496015,1739884014226,152.69,0.000149,31]
[353496016,1739884014279,152.69,0.000149,31]
[353496029,1739884231961,-550.0,0.0001,2]
[353496030,1739884231971,-150.0,0.00013044,2]
[353496031,1739884231981,-150.0,0.00013044,2]
[353496032,1739884231990,-150.0,0.00013044,2]
[353496033,1739884231999,-150.0,0.00013044,2]
[353496034,1739884232009,-2198.38,0.00013238,2]
[353496035,1739884232018,-250.0,0.00013238,2]
[353496036,1739884232027,-1000.0,0.00013266,2]
[353496037,1739884232037,-150.0,0.00013406,2]
[353496038,1739884232047,-2000.0,0.00013558,2]
[353496039,1739884232055,-187.26,0.00013561,2]
[353496040,1739884232065,-169.733985,0.00013698,2]
[353496041,1739884232074,-155.04154,0.00013698,2]
[353496042,1739884232083,-169.733984,0.00013698,2]
[353496043,1739884232095,-155.04154,0.00013698,2]
[353496044,1739884232104,-169.733982,0.00013698,2]
[353496045,1739884232113,-155.04154,0.00013698,2]
[353496046,1739884232122,-150.0,0.00013699,2]
[353496047,1739884232131,-200.0,0.000137,2]
[353496048,1739884232140,-150.0,0.00013768,2]
[353496049,1739884232150,-149.0820543,0.00013768,2]
[353496050,1739884232161,-0.9179457,0.00013768,2]
[353496051,1739884232170,-150.0,0.00013768,2]
[353496052,1739884232179,-155.04154,0.0001378,2]
[353496053,1739884232189,-202.68,0.000138,2]
[353496054,1739884232198,-169.733985,0.00013863,2]
[353496055,1739884232208,-155.04154,0.00013863,2]
[353496056,1739884232218,-150.0,0.00014059,2]
[353496057,1739884232227,-416.83842972,0.0001406,2]
[353496058,1739884232236,-150.0,0.00014131,2]
[353496059,1739884232246,-200.0,0.00014136,2]
[353496060,1739884232255,-169.733985,0.00014191,2]
[353496061,1739884232264,-155.04154,0.00014191,2]
[353496062,1739884232273,-1244.69461748,0.000143,2]
[353496063,1739884232285,-1198.53637903,0.000143,2]
[353496064,1739884232296,-4645.55540349,0.000143,2]
[353496065,1739884232306,-550.87000264,0.00014398,2]
[353496066,1739884232317,-454.92529219,0.00014398,2]
[353496067,1739884232328,-488.33890517,0.00014398,2]
[353496068,1739884232337,-419.75879209,0.00014399,2]
[353496069,1739884232349,-1000.0,0.00014399,2]
[353496070,1739884232359,-3081.5206,0.00014399,2]
[353496071,1739884232368,-2500.0,0.00014399,2]
[353496072,1739884232377,-150.0,0.00014399,2]
[353496073,1739884232386,-1284.38708834,0.000144,2]
[353496074,1739884232402,-504.24342498,0.000144,2]
[353496075,1739884232413,-1565.51600315,0.000144,2]
[353496268,1739884237830,-500.0,0.000144,2]
[353496273,1739884237888,-1730.02566665,0.000144,2]
[353496274,1739884237899,-41420.43431688,0.000144,2]
[353496275,1739884237909,-55555.0,0.000144,2]
[353496276,1739884237918,-64088.12561715,0.000144,2]
[353496277,1739884237928,-150.0,0.0001442,2]
[353496278,1739884237937,-155.04154,0.00014438,2]
[353496279,1739884237946,-1786.0,0.0001448,2]
[353496280,1739884237956,-908.0,0.0001448,2]
[353496281,1739884237967,-783.0,0.0001448,2]
[353496282,1739884237977,-1266.0,0.0001448,2]
[353496283,1739884237988,-2957.0,0.0001448,2]
[353496284,1739884237997,-4027.0,0.0001448,2]
[353496285,1739884238006,-538.995,0.0001448,2]
[353496286,1739884238015,-150.0,0.0001448,2]
[353496287,1739884238024,-150.0,0.00014493,2]
[353496288,1739884238033,-150.0,0.00014493,2]
[353496289,1739884238042,-278.09500878,0.00014493,2]
[353496290,1739884238052,-283.82179201,0.00014497,2]
[353496291,1739884238062,-500.0,0.00014497,2]
[353496292,1739884238071,-500.0,0.00014497,2]
[353496293,1739884238081,-500.0,0.00014497,2]
[353496294,1739884238091,-500.0,0.00014497,2]
[353496295,1739884238100,-630.15,0.00014497,2]
[353496296,1739884238110,-383.33849155,0.00014497,2]
[353496298,1739884238119,-500.0,0.00014498,2]
[353496300,1739884238129,-500.0,0.00014498,2]
[353496302,1739884238138,-617.5,0.00014498,2]
[353496304,1739884238147,-500.0,0.00014498,2]
[353496306,1739884238156,-500.0,0.00014498,2]
[353496308,1739884238165,-500.0,0.00014498,2]
[353496309,1739884238174,-628.61,0.00014498,2]
[353496311,1739884238183,-500.0,0.00014498,2]
[353496313,1739884238192,-500.0,0.00014498,2]
[353496314,1739884238201,-500.0,0.00014498,2]
[353496315,1739884238210,-500.0,0.00014498,2]
[353496316,1739884238219,-500.0,0.00014498,2]
[353496317,1739884238229,-500.0,0.00014498,2]
[353496318,1739884238237,-500.0,0.00014498,2]
[353496319,1739884238246,-500.0,0.00014498,2]
[353496320,1739884238255,-500.0,0.00014498,2]
[353496321,1739884238264,-521.91847916,0.00014498,2]
[353496322,1739884238273,-509.55473289,0.00014498,2]
[353496323,1739884238282,-571.46,0.00014498,2]
[353496324,1739884238290,-500.0,0.00014498,2]
[353496325,1739884238299,-392.04702223,0.00014498,2]
[353496326,1739884238308,-500.0,0.00014498,2]
[353496327,1739884238317,-500.0,0.00014498,2]
[353496328,1739884238325,-500.0,0.00014498,2]
[353496329,1739884238335,-500.0,0.00014498,2]
[353496331,1739884238343,-612.19,0.00014498,2]
[353496333,1739884238354,-500.0,0.00014498,2]
[353496335,1739884238363,-500.0,0.00014498,2]
[353496337,1739884238372,-500.0,0.00014498,2]
[353496339,1739884238381,-500.0,0.00014498,2]
[353496341,1739884238390,-500.0,0.00014498,2]
[353496342,1739884238399,-500.0,0.00014498,2]
[353496344,1739884238408,-500.0,0.00014498,2]
[353496346,1739884238417,-500.0,0.00014498,2]
[353496348,1739884238427,-275.52384623,0.00014498,2]
[353496350,1739884238436,-500.0,0.00014498,2]
[353496353,1739884238446,-500.0,0.00014498,2]
[353496355,1739884238455,-500.0,0.00014498,2]
[353496357,1739884238464,-500.0,0.00014498,2]
[353496358,1739884238474,-500.0,0.00014498,2]
[353496360,1739884238484,-500.0,0.00014498,2]
[353496362,1739884238494,-500.0,0.00014498,2]
[353496364,1739884238503,-500.0,0.00014498,2]
[353496366,1739884238513,-500.0,0.00014498,2]
[353496368,1739884238523,-500.0,0.00014498,2]
[353496370,1739884238532,-500.0,0.00014498,2]
[353496372,1739884238541,-500.0,0.00014498,2]
[353496374,1739884238551,-500.0,0.00014498,2]
[353496376,1739884238560,-500.0,0.00014498,2]
[353496378,1739884238569,-500.0,0.00014498,2]
[353496380,1739884238578,-642.21,0.00014498,2]
[353496382,1739884238587,-500.0,0.00014498,2]
[353496384,1739884238597,-503.56812457,0.00014498,2]
[353496386,1739884238608,-500.0,0.00014498,2]
[353496388,1739884238617,-552.98,0.00014498,2]
[353496390,1739884238627,-500.0,0.00014498,2]
[353496392,1739884238636,-500.0,0.00014498,2]
[353496394,1739884238645,-500.0,0.00014498,2]
[353496396,1739884238654,-500.0,0.00014498,2]
[353496398,1739884238664,-500.0,0.00014498,2]
[353496400,1739884238673,-500.0,0.00014498,2]
[353496402,1739884238682,-500.0,0.00014498,2]
[353496404,1739884238691,-500.0,0.00014498,2]
[353496406,1739884238702,-500.0,0.00014498,2]
[353496408,1739884238711,-500.0,0.00014498,2]
[353496410,1739884238720,-506.54830443,0.00014498,2]
[353496412,1739884238729,-500.0,0.00014498,2]
[353496414,1739884238738,-500.0,0.00014498,2]
[353496416,1739884238748,-500.0,0.00014498,2]
[353496418,1739884238757,-504.29419342,0.00014498,2]
[353496420,1739884238766,-503.46258069,0.00014498,2]
[353496422,1739884238775,-500.0,0.00014498,2]
[353496424,1739884238784,-500.0,0.00014498,2]
[353496426,1739884238793,-500.0,0.00014498,2]
[353496428,1739884238802,-501.89240034,0.00014498,2]
[353496430,1739884238811,-500.0,0.00014498,2]
[353496432,1739884238820,-500.5170847,0.00014498,2]
[353496434,1739884238829,-456.96311394,0.00014498,2]
[353496436,1739884238838,-188.90986779,0.00014498,2]
[353496438,1739884238847,-500.0,0.00014498,2]
[353496440,1739884238858,-606.73,0.00014498,2]
[353496442,1739884238867,-500.0,0.00014498,2]
[353496444,1739884238877,-948.41,0.00014498,2]
[353496446,1739884238888,-500.0,0.00014498,2]
[353496448,1739884238898,-500.0,0.00014498,2]
[353496450,1739884238909,-500.0,0.00014498,2]
[353496452,1739884238918,-500.0,0.00014498,2]
[353496454,1739884238927,-500.0,0.00014498,2]
[353496456,1739884238937,-500.0,0.00014498,2]
[353496458,1739884238945,-500.0,0.00014498,2]
[353496460,1739884238954,-500.0,0.00014498,2]
[353496462,1739884238966,-500.0,0.00014498,2]
[353496464,1739884238975,-500.0,0.00014498,2]
[353496466,1739884238984,-554.91,0.00014498,2]
[353496468,1739884238993,-500.0,0.00014498,2]
[353496470,1739884239002,-500.0,0.00014498,2]
[353496472,1739884239011,-500.0,0.00014498,2]
[353496474,1739884239020,-500.0,0.00014498,2]
[353496475,1739884239029,-500.0,0.00014498,2]
[353496476,1739884239038,-500.0,0.00014498,2]
[353496477,1739884239047,-500.0,0.00014498,2]
[353496478,1739884239055,-500.0,0.00014498,2]
[353496479,1739884239064,-500.0,0.00014498,2]
[353496480,1739884239073,-500.0,0.00014498,2]
[353496481,1739884239082,-365.9673956,0.00014498,2]
[353496482,1739884239091,-500.0,0.00014498,2]
[353496484,1739884239100,-500.0,0.00014498,2]
[353496485,1739884239110,-623.3,0.00014498,2]
[353496486,1739884239119,-500.0,0.00014498,2]
[353496487,1739884239128,-500.0,0.00014498,2]
[353496488,1739884239137,-500.0,0.00014498,2]
[353496489,1739884239146,-500.0,0.00014498,2]
[353496490,1739884239155,-152.80207721,0.00014498,2]
[353496491,1739884239163,-502.28059071,0.00014498,2]
[353496492,1739884239172,-500.0,0.00014498,2]
[353496493,1739884239181,-500.0,0.00014498,2]
[353496494,1739884239191,-500.0,0.00014498,2]
[353496495,1739884239200,-500.0,0.00014498,2]
[353496496,1739884239209,-500.0,0.00014498,2]
[353496497,1739884239218,-500.0,0.00014498,2]
[353496498,1739884239227,-500.0,0.00014498,2]
[353496499,1739884239236,-500.0,0.00014498,2]
[353496500,1739884239255,-500.0,0.00014498,2]
[353496501,1739884239266,-503.30476044,0.00014498,2]
[353496502,1739884239275,-500.0,0.00014498,2]
[353496503,1739884239284,-500.0,0.00014498,2]
[353496504,1739884239294,-7710.3138168,0.00014499,2]
[353496505,1739884239303,-500.0,0.00014499,2]
[353496506,1739884239313,-500.0,0.00014499,2]
[353496507,1739884239322,-500.0,0.00014499,2]
[353496508,1739884239331,-500.0,0.00014499,2]
[353496509,1739884239340,-175.25541519,0.00014499,2]
[353496510,1739884239350,-500.0,0.00014499,2]
[353496511,1739884239360,-500.0,0.00014499,2]
[353496512,1739884239370,-502.03543557,0.00014499,2]
[353496513,1739884239379,-503.55965214,0.00014499,2]
[353496514,1739884239388,-500.0,0.00014499,2]
[353496515,1739884239397,-500.0,0.00014499,2]
[353496516,1739884239406,-500.0,0.00014499,2]
[353496517,1739884239416,-500.0,0.00014499,2]
[353496518,1739884239426,-500.0,0.00014499,2]
[353496519,1739884239435,-500.0,0.00014499,2]
[353496520,1739884239444,-500.0,0.00014499,2]
[353496521,1739884239453,-329.36235558,0.00014499,2]
[353496522,1739884239463,-500.0,0.00014499,2]
[353496523,1739884239473,-500.0,0.00014499,2]
[353496524,1739884239482,-500.0,0.00014499,2]
[353496525,1739884239493,-500.0,0.00014499,2]
[353496526,1739884239502,-500.0,0.00014499,2]
[353496527,1739884239512,-500.0,0.00014499,2]
[353496528,1739884239521,-500.0,0.00014499,2]
[353496529,1739884239531,-500.0,0.00014499,2]
[353496530,1739884239541,-500.0,0.00014499,2]
[353496531,1739884239551,-500.0,0.00014499,2]
[353496532,1739884239561,-500.0,0.00014499,2]
[353496533,1739884239571,-500.0,0.00014499,2]
[353496534,1739884239580,-500.0,0.00014499,2]
[353496535,1739884239589,-500.0,0.00014499,2]
[353496536,1739884239599,-500.0,0.00014499,2]
[353496537,1739884239610,-500.0,0.00014499,2]
[353496538,1739884239619,-500.0,0.00014499,2]
[353496539,1739884239629,-500.0,0.00014499,2]
[353496540,1739884239639,-507.23166929,0.00014499,2]
[353496541,1739884239648,-500.58081542,0.00014499,2]
[353496542,1739884239658,-500.0,0.00014499,2]
[353496543,1739884239667,-500.0,0.00014499,2]
[353496544,1739884239676,-501.97277361,0.00014499,2]
[353496545,1739884239686,-401.69795434,0.00014499,2]
[353496546,1739884239695,-500.0,0.00014499,2]
[353496547,1739884239705,-502.2805188,0.00014499,2]
[353496548,1739884239714,-500.0,0.00014499,2]
[353496549,1739884239724,-500.0,0.00014499,2]
[353496550,1739884239733,-500.17075589,0.00014499,2]
[353496551,1739884239743,-500.52389568,0.00014499,2]
[353496552,1739884239752,-500.0,0.00014499,2]
[353496553,1739884239761,-530.90839102,0.00014499,2]
[353496554,1739884239771,-500.0,0.00014499,2]
[353496556,1739884239780,-500.0,0.00014499,2]
[353496557,1739884239790,-503.55861939,0.00014499,2]
[353496558,1739884239799,-500.0,0.00014499,2]
[353496559,1739884239808,-500.0,0.00014499,2]
[353496560,1739884239817,-500.0,0.00014499,2]
[353496561,1739884239827,-500.0,0.00014499,2]
[353496562,1739884239837,-500.0,0.00014499,2]
[353496564,1739884239847,-500.0,0.00014499,2]
[353496565,1739884239858,-500.0,0.00014499,2]
[353496566,1739884239867,-500.0,0.00014499,2]
[353496567,1739884239876,-500.0,0.00014499,2]
[353496568,1739884239886,-500.0,0.00014499,2]
[353496569,1739884239898,-500.0,0.00014499,2]
[353496570,1739884239907,-503.18270127,0.00014499,2]
[353496571,1739884239917,-500.0,0.00014499,2]
[353496572,1739884239927,-503.60852105,0.00014499,2]
[353496573,1739884239936,-224.89357772,0.00014499,2]
[353496574,1739884239945,-503.61678661,0.00014499,2]
[353496575,1739884239954,-500.0,0.00014499,2]
[353496576,1739884239965,-503.83201734,0.00014499,2]
[353496577,1739884239975,-500.0,0.00014499,2]
[353496578,1739884239984,-500.0,0.00014499,2]
[353496579,1739884239993,-500.0,0.00014499,2]
[353496580,1739884240002,-504.2675551,0.00014499,2]
[353496581,1739884240011,-500.0,0.00014499,2]
[353496582,1739884240021,-500.0,0.00014499,2]
[353496583,1739884240030,-502.18404574,0.00014499,2]
[353496584,1739884240039,-500.0,0.00014499,2]
[353496585,1739884240048,-500.0,0.00014499,2]
[353496586,1739884240057,-500.0,0.00014499,2]
[353496587,1739884240067,-504.13826468,0.00014499,2]
[353496588,1739884240076,-500.0,0.00014499,2]
[353496589,1739884240085,-506.30428105,0.00014499,2]
[353496590,1739884240094,-500.0,0.00014499,2]
[353496591,1739884240104,-502.06473886,0.00014499,2]
[353496592,1739884240114,-500.0,0.00014499,2]
[353496593,1739884240123,-500.0,0.00014499,2]
[353496594,1739884240132,-500.0,0.00014499,2]
[353496595,1739884240141,-503.57025285,0.00014499,2]
[353496596,1739884240150,-500.0,0.00014499,2]
[353496597,1739884240160,-507.01485545,0.00014499,2]
[353496598,1739884240169,-500.0,0.00014499,2]
[353496599,1739884240178,-502.55113717,0.00014499,2]
[353496600,1739884240187,-500.0,0.00014499,2]
[353496601,1739884240196,-500.0,0.00014499,2]
[353496602,1739884240205,-513.06491108,0.00014499,2]
[353496603,1739884240215,-503.88577645,0.00014499,2]
[353496604,1739884240224,-500.0,0.00014499,2]
[353496605,1739884240233,-500.0,0.00014499,2]
[353496606,1739884240242,-500.0,0.00014499,2]
[353496607,1739884240252,-500.0,0.00014499,2]
[353496608,1739884240261,-500.0,0.00014499,2]
[353496609,1739884240270,-500.0,0.00014499,2]
[353496610,1739884240279,-523.64,0.00014499,2]
[353496611,1739884240288,-500.0,0.00014499,2]
[353496612,1739884240297,-508.35,0.00014499,2]
[353496613,1739884240306,-500.0,0.00014499,2]
[353496614,1739884240317,-500.0,0.00014499,2]
[353496616,1739884240501,-500.0,0.00014499,2]
[353496617,1739884240511,-500.0,0.00014499,2]
[353496618,1739884240521,-500.0,0.00014499,2]
[353496619,1739884240530,-465.89326666,0.00014499,2]
[353496620,1739884240540,-500.0,0.00014499,2]
[353496621,1739884240548,-500.0,0.00014499,2]
[353496622,1739884240558,-506.99280826,0.00014499,2]
[353496623,1739884240567,-500.0,0.00014499,2]
[353496624,1739884240577,-500.0,0.00014499,2]
[353496625,1739884240586,-500.0,0.00014499,2]
[353496626,1739884240595,-500.0,0.00014499,2]
[353496627,1739884240605,-507.65640762,0.00014499,2]
[353496628,1739884240614,-500.0,0.00014499,2]
[353496629,1739884240624,-500.0,0.00014499,2]
[353496630,1739884240633,-500.0,0.00014499,2]
[353496631,1739884240642,-500.0,0.00014499,2]
[353496632,1739884240652,-500.0,0.00014499,2]
[353496633,1739884240662,-500.0,0.00014499,2]
[353496634,1739884240671,-500.0,0.00014499,2]
[353496635,1739884240680,-500.0,0.00014499,2]
[353496636,1739884240690,-500.0,0.00014499,2]
[353496637,1739884240699,-500.0,0.00014499,2]
[353496638,1739884240709,-552.40399881,0.00014499,2]
[353496639,1739884240718,-507.6426173,0.00014499,2]
[353496640,1739884240727,-500.0,0.00014499,2]
[353496641,1739884240737,-500.0,0.00014499,2]
[353496642,1739884240746,-500.0,0.00014499,2]
[353496643,1739884240755,-168.80671627,0.00014499,2]
[353496644,1739884240765,-500.0,0.00014499,2]
[353496645,1739884240774,-500.0,0.00014499,2]
[353496646,1739884240783,-506.54814756,0.00014499,2]
[353496647,1739884240792,-500.0,0.00014499,2]
[353496648,1739884240802,-500.0,0.00014499,2]
[353496649,1739884240811,-500.0,0.00014499,2]
[353496650,1739884240822,-500.0,0.00014499,2]
[353496651,1739884240831,-500.0,0.00014499,2]
[353496652,1739884240840,-500.0,0.00014499,2]
[353496653,1739884240850,-500.0,0.00014499,2]
[353496654,1739884240860,-500.0,0.00014499,2]
[353496655,1739884240870,-500.0,0.00014499,2]
[353496656,1739884240881,-500.0,0.00014499,2]
[353496657,1739884240893,-500.0,0.00014499,2]
[353496658,1739884240903,-503.07324977,0.00014499,2]
[353496659,1739884240912,-500.0,0.00014499,2]
[353496660,1739884240922,-500.0,0.00014499,2]
[353496661,1739884240931,-23858.71817532,0.000145,3]
[353496662,1739884240940,-5945206.00284012,0.000145,5]
[353496663,1739884241081,-727.95966854,0.000145,5]
[353496664,1739884241093,-9632.35661111,0.000145,5]
[353496665,1739884241105,-5600.0637343,0.000145,5]
[353496666,1739884241116,-14986.47173957,0.000145,5]
[353496667,1739884241127,-140477.10336554,0.000145,5]
[353496668,1739884241144,-500.0,0.00014498,2]
[353496669,1739884241154,-57479.00050692,0.000145,5]
[353496670,1739884241200,-500.0,0.00014497,2]
[353496671,1739884241209,-683.40819368,0.000145,5]
[353496672,1739884241224,-6036.59941653,0.000145,5]
[353496673,1739884241235,-10532.0,0.000145,5]
[353496674,1739884241246,-4217.54015466,0.000145,5]
[353496675,1739884241257,-1199.30233872,0.000145,5]
[353496676,1739884241523,-31594.38949374,0.000145,5]
[353496677,1739884241534,-297.82867182,0.000145,5]
[353496685,1739884242927,-917.47135174,0.0001448,2]
[353496686,1739884242940,-722.8964919,0.0001448,2]
[353496687,1739884242952,-2272.63215636,0.0001448,2]
[353496688,1739884242964,-1118.186,0.0001448,2]
[353496689,1739884242973,-93247.78500602,0.000145,5]
[353496690,1739884242986,-396.18532911,0.000145,5]
[353496711,1739884243436,-548.915419,0.000145,5]
[353496713,1739884243448,-276.29565446,0.000145,5]
[353496716,1739884243459,-3846.78455,0.000145,5]
[353496718,1739884243471,-105638.02802707,0.000145,5]
[353496720,1739884243482,-3197.54513101,0.000145,5]
[353496763,1739884245937,-384.46,0.00013803,2]
[353496764,1739884245946,-500.0,0.00014497,2]
[353496765,1739884245956,-1805.61562,0.000145,5]
[353496862,1739884832282,500.0,0.00014499,30]
[353496863,1739884987109,152.49,8.767e-05,2]
[353496866,1739885193432,-20967.83706784,9.99e-05,2]
[353496867,1739885193456,-300.0,9.999e-05,2]
[353496868,1739885193480,-500.0,9.999e-05,2]
[353496869,1739885193503,-500.0,9.999e-05,2]
[353496870,1739885193525,-500.0,9.999e-05,2]
[353496871,1739885193547,-500.0,9.999e-05,2]
[353496872,1739885193570,-189.8701255,9.999e-05,2]
[353496873,1739885193592,-500.0,9.999e-05,2]
[353496874,1739885193616,-500.0,9.999e-05,2]
[353496875,1739885193638,-500.0,9.999e-05,2]
[353496876,1739885193663,-2700988.86246398,0.0001,2]
[353496877,1739885193685,-155.80922846,0.0001,2]
[353496878,1739885193708,-420.0,0.00010999,2]
[353496879,1739885193731,-200.0,0.00011,2]
[353496880,1739885193754,-420.91,0.00011701,2]
[353496881,1739885193775,-209.53266591,0.000119,2]
[353496882,1739885193798,-200.0,0.00011938,2]
[353496883,1739885193820,-300.0,0.00012099,2]
[353496884,1739885193842,-150.0,0.00012871,2]
[353496885,1739885193865,-150.0,0.00012871,2]
[353496886,1739885193888,-200.0,0.00012871,2]
[353496887,1739885193911,-150.0,0.00013044,2]
[353496888,1739885193935,-244.2593734,0.00013044,2]
[353496889,1739885193957,-150.0,0.00013044,2]
[353496890,1739885193979,-152.17603003,0.00013044,2]
[353496891,1739885194002,-200.0,0.00013166,2]
[353496892,1739885194023,-2000.0,0.00013199,2]
[353496893,1739885194045,-250.0,0.00013227,2]
[353496894,1739885194067,-1689.99,0.00013263,2]
[353496895,1739885194092,-380.24,0.00013321,2]
[353496896,1739885194115,-500.0,0.0001341,2]
[353496897,1739885194137,-163.41,0.00013445,2]
[353496898,1739885194161,-23900.0,0.00013678,2]
[353496899,1739885194183,-150.0,0.00013699,2]
[353496900,1739885194204,-182.41,0.000138,2]
[353496901,1739885194230,-168.59,0.00013895,2]
[353496902,1739885194253,-420.91,0.00013965,2]
[353496903,1739885194276,-150.0,0.00014059,2]
[353496904,1739885194300,-432.25152485,0.00014115,2]
[353496905,1739885194323,-1039.74369159,0.0001421,2]
[353496906,1739885194346,-1104.97850833,0.0001421,2]
[353496907,1739885194368,-297.0,0.00014219,2]
[353496908,1739885194391,-150.0,0.00014299,2]
[353496909,1739885194415,-13350.3694,0.000143,2]
[353496910,1739885194438,-1000.0,0.000143,2]
[353496911,1739885194460,-3810.16193,0.0001435,2]
[353496912,1739885194481,-5800.0,0.00014358,2]
[353496913,1739885194503,-5800.0,0.00014366,2]
[353496914,1739885194525,-5800.0,0.00014375,2]
[353496915,1739885194547,-58398.4436,0.0001438,2]
[353496916,1739885194569,-2500.0,0.0001438,2]
[353496917,1739885194591,-5800.0,0.00014383,2]
[353496918,1739885194617,-5800.0,0.00014392,2]
[353496919,1739885194639,-5800.0,0.000144,2]
[353496920,1739885194661,-55555.0,0.000144,2]
[353496921,1739885194684,-167.92376665,0.000144,2]
[353496922,1739885194705,-150.0,0.0001442,2]
[353496923,1739885194726,-932.57977943,0.00014462,10]
[353496924,1739885194747,-2026.0,0.0001448,2]
[353496925,1739885194768,-1274.0,0.0001448,2]
[353496926,1739885194789,-569.0,0.0001448,2]
[353496927,1739885194810,-639.0,0.0001448,2]
[353496928,1739885194832,-2957.0,0.0001448,2]
[353496929,1739885194852,-1266.0,0.0001448,2]
[353496930,1739885194874,-4027.0,0.0001448,2]
[353496931,1739885194895,-539.0,0.0001448,2]
[353496932,1739885194917,-3915.0,0.0001448,2]
[353496933,1739885194939,-150.0,0.0001448,2]
[353496934,1739885194960,-1009.441,0.0001448,2]
[353496935,1739885195187,-1109.0,0.0001448,2]
[353496936,1739885195216,-522.13,0.00014497,2]
[353496937,1739885195238,-500.0,0.00014497,2]
[353496938,1739885195262,-500.0,0.00014497,2]
[353496939,1739885195284,-500.0,0.00014497,2]
[353496940,1739885195308,-598.40230051,0.00014497,2]
[353496941,1739885195330,-500.0,0.00014497,2]
[353496942,1739885195352,-500.0,0.00014497,2]
[353496943,1739885195373,-500.0,0.00014497,2]
[353496944,1739885195394,-500.0,0.00014497,2]
[353496945,1739885195416,-500.0,0.00014497,2]
[353496946,1739885195439,-645.25,0.00014497,2]
[353496947,1739885195459,-500.0,0.00014497,2]
[353496948,1739885195480,-500.0,0.00014497,2]
[353496949,1739885195501,-500.0,0.00014497,2]
[353496950,1739885195521,-500.0,0.00014497,2]
[353496951,1739885195541,-500.0,0.00014497,2]
[353496952,1739885195561,-500.0,0.00014497,2]
[353496953,1739885195582,-500.0,0.00014497,2]
[353496954,1739885195602,-590.81,0.00014497,2]
[353496955,1739885195623,-500.0,0.00014497,2]
[353496956,1739885195643,-577.67,0.00014497,2]
[353496957,1739885195664,-587.36,0.00014497,2]
[353496958,1739885195686,-500.0,0.00014497,2]
[353496959,1739885195709,-500.0,0.00014497,2]
[353496960,1739885195732,-500.0,0.00014497,2]
[353496961,1739885195755,-500.0,0.00014497,2]
[353496962,1739885195776,-500.0,0.00014497,2]
[353496963,1739885195800,-599.87,0.00014497,2]
[353496964,1739885195825,-500.0,0.00014497,2]